bitfinex/quotes_BTCUSD_20220304
["timestamp","ask_amount","ask_price","bid_price","bid_amount"]
[1646393072162,0.2458989,41704.0,41700.0,0.32171334]
[1646393072363,0.2458989,41705.0,41701.0,0.05998]
[1646393072565,0.09199265,41702.0,41701.0,0.05998]
[1646393072764,0.28124235,41706.0,41701.0,0.38169334]
[1646393072962,0.03534345,41706.0,41701.0,0.38169334]
[1646393073363,0.03534345,41706.0,41701.0,0.05998]
[1646393074264,0.28124235,41706.0,41701.0,0.05998]
[1646393076814,0.28124235,41706.0,41700.0,0.05]
[1646393077415,0.2458989,41705.0,41700.0,0.05]
[1646393081268,0.2458989,41705.0,41701.0,0.48552615]
[1646393081473,0.2458989,41705.0,41701.0,0.54550715]
[1646393082714,0.28124235,41706.0,41701.0,0.54550715]
[1646393083515,0.28124235,41706.0,41701.0,0.22379381]
[1646393083516,0.2458989,41705.0,41701.0,0.22379381]
[1646393084315,0.2458989,41705.0,41701.0,0.059981]
[1646393084517,0.2458989,41704.0,41701.0,0.059981]
[1646393084917,0.2458989,41703.0,41701.0,0.059981]
[1646393085317,0.2458989,41703.0,41699.0,0.01256811]
[1646393087260,0.2458989,41703.0,41701.0,0.20591111]
[1646393087464,0.2458989,41703.0,41701.0,0.14949236]
[1646393087662,0.2458989,41703.0,41701.0,0.20947936]
[1646393087862,0.2458989,41704.0,41701.0,0.20947936]
[1646393088462,0.2458989,41703.0,41701.0,0.20947936]
[1646393088863,0.2458989,41703.0,41701.0,0.27214807]
[1646393089262,0.33042213,41706.0,41701.0,0.32214807]
[1646393089263,0.2458989,41704.0,41701.0,0.32214807]
[1646393089464,0.2458989,41704.0,41701.0,0.19949236]
[1646393089665,0.2458989,41703.0,41699.0,0.01256811]
[1646393090721,0.2458989,41703.0,41699.0,0.22218133]
[1646393091119,0.2458989,41703.0,41699.0,0.27218133]
[1646393092120,0.29507868,41705.0,41699.0,0.27218133]
[1646393093020,0.24617429,41702.0,41699.0,0.27218133]
[1646393094067,0.24617429,41702.0,41699.0,0.25961322]
[1646393094265,0.24617429,41701.0,41699.0,0.20961322]
[1646393094465,0.24617429,41701.0,41695.0,0.01448061]
[1646393095266,0.24617429,41701.0,41696.0,0.28475688]
[1646393095566,0.02400298,41697.0,41694.0,0.20835619]
[1646393095770,0.24617429,41700.0,41698.0,0.05842994]
[1646393095966,0.02400298,41699.0,41698.0,0.05842994]
[1646393096665,0.02400298,41699.0,41698.0,0.27492032]
[1646393099514,0.02400298,41699.0,41698.0,0.28961736]
[1646393099713,0.02400298,41699.0,41698.0,0.38951736]
[1646393101394,0.02400298,41699.0,41698.0,0.28961736]
[1646393101994,0.29507868,41703.0,41698.0,0.28961736]
[1646393102396,0.33042213,41706.0,41699.0,0.32060754]
[1646393102598,0.03534345,41706.0,41699.0,0.32060754]
[1646393103295,0.03534345,41706.0,41705.0,0.21068878]
[1646393103498,0.1273361,41706.0,41705.0,0.21068878]
[1646393103697,0.1273361,41706.0,41705.0,0.26068878]
[1646393103898,0.1273361,41706.0,41705.0,0.05]
[1646393104297,0.1273361,41706.0,41699.0,0.32060754]
[1646393104498,0.33042213,41706.0,41699.0,0.05]
[1646393104699,0.33042213,41706.0,41701.0,0.27200267]
[1646393105116,0.33042213,41706.0,41701.0,0.37200267]
[1646393105318,0.29507868,41705.0,41699.0,0.18385354]
[1646393106317,0.29507868,41705.0,41698.0,0.35760942]
[1646393106518,0.03534345,41706.0,41698.0,0.35760942]
[1646393106519,0.29507868,41704.0,41698.0,0.40760942]
[1646393106717,0.29507868,41704.0,41698.0,0.45760942]
[1646393106918,0.29507868,41705.0,41698.0,0.45760942]
[1646393107818,0.29507868,41705.0,41698.0,0.17301423]
[1646393108019,0.29507868,41704.0,41698.0,0.17301423]
[1646393108219,0.29507868,41704.0,41698.0,0.12301423]
[1646393108420,0.29507868,41703.0,41698.0,0.10842994]
[1646393108767,0.29507868,41703.0,41698.0,0.05842994]
[1646393109765,0.03534345,41706.0,41698.0,0.05842994]
[1646393109766,0.29507868,41704.0,41698.0,0.05842994]
[1646393110165,0.29507868,41703.0,41698.0,0.05842994]
[1646393110368,0.29507868,41702.0,41698.0,0.05842994]
[1646393110567,0.29507868,41701.0,41698.0,0.05842994]
[1646393110866,0.03534345,41706.0,41698.0,0.05842994]
[1646393110867,0.34425846,41700.0,41698.0,0.05842994]
[1646393111070,1.4,41698.0,41688.0,0.0102416]
[1646393111272,1.4,41698.0,41685.0,0.1299]
[1646393111273,0.29559147,41695.0,41685.0,0.1299]
[1646393111867,0.29559147,41695.0,41685.0,0.79006998]
[1646393112067,0.29559147,41695.0,41688.0,0.20740701]
[1646393112267,0.29559147,41695.0,41688.0,0.30740701]
[1646393112514,0.29559147,41695.0,41688.0,0.20740701]
[1646393112715,0.29559147,41695.0,41685.0,0.1299]
[1646393113515,0.29559147,41695.0,41688.0,0.05785209]
[1646393113714,0.29559147,41695.0,41688.0,0.24855012]
[1646393114115,0.29559147,41695.0,41690.0,0.5]
[1646393114515,0.0481,41697.0,41690.0,0.5]
[1646393114516,0.29559147,41696.0,41690.0,0.5]
[1646393114715,0.34369147,41696.0,41690.0,0.5]
[1646393115316,0.34369147,41696.0,41692.0,0.19041913]
[1646393115514,0.34369147,41696.0,41692.0,0.69041913]
[1646393116365,0.34369147,41696.0,41692.0,0.5]
[1646393116570,0.0481,41696.0,41692.0,0.5]
[1646393117466,0.34369147,41696.0,41692.0,0.5]
[1646393117869,0.02400903,41693.0,41692.0,0.5]
[1646393118070,0.02400874,41693.0,41692.0,0.5]
[1646393118369,0.02400816,41693.0,41692.0,0.5]
[1646393118770,0.02400787,41693.0,41692.0,0.5]
[1646393120718,0.06020862,41693.0,41692.0,0.5]
[1646393122216,0.02400787,41693.0,41692.0,0.5]
[1646393122615,0.02400787,41693.0,41692.0,1.0]
[1646393123316,0.02400759,41693.0,41692.0,1.0]
[1646393123516,0.004,41697.0,41692.0,1.0]
[1646393123517,0.02796,41697.0,41692.0,1.0]
[1646393124164,0.02396,41697.0,41692.0,1.0]
[1646393124566,0.08397,41697.0,41692.0,1.0]
[1646393128318,0.37956147,41697.0,41692.0,1.0]
[1646393129219,0.08397,41697.0,41692.0,1.0546862]
[1646393129420,0.005,41699.0,41696.0,0.1683552]
[1646393129624,0.03534345,41706.0,41696.0,0.1683552]
[1646393129625,0.03534345,41706.0,41700.0,0.0623966]
[1646393129819,0.03534345,41706.0,41702.0,0.22635761]
[1646393130019,0.03534345,41706.0,41702.0,0.31959134]
[1646393130519,0.03534345,41706.0,41700.0,0.0623966]
[1646393130720,0.04494745,41706.0,41703.0,0.19647251]
[1646393131120,0.03534345,41706.0,41703.0,0.19647251]
[1646393131571,0.03534345,41706.0,41703.0,0.69647251]
[1646393131769,0.03534345,41706.0,41703.0,0.5]
[1646393132369,0.34485672,41705.0,41703.0,0.5]
[1646393132568,0.03534345,41706.0,41703.0,0.5]
[1646393132569,0.34485672,41704.0,41703.0,0.5]
[1646393134068,0.34485672,41704.0,41699.0,0.00999999]
[1646393134269,0.36881672,41704.0,41699.0,0.00999999]
[1646393134869,0.02396,41704.0,41699.0,0.25278899]
[1646393135116,0.02396,41704.0,41699.0,0.00999999]
[1646393135317,0.34485672,41705.0,41700.0,0.21744703]
[1646393135619,0.03534345,41706.0,41700.0,0.21744703]
[1646393138621,0.09199265,41702.0,41700.0,0.21744703]
[1646393138879,0.09199265,41701.0,41700.0,0.42663806]
[1646393139077,0.03534345,41706.0,41700.0,0.42663806]
[1646393139377,0.02400182,41702.0,41700.0,0.42663806]
[1646393139577,0.02400182,41701.0,41700.0,0.42663806]
[1646393140181,0.02400182,41701.0,41700.0,0.20919103]
[1646393144521,0.02400182,41701.0,41699.0,0.50999999]
[1646393144721,0.02400182,41700.0,41699.0,0.50999999]
[1646393145022,0.02400182,41700.0,41699.0,0.55999999]
[1646393145621,0.02400182,41700.0,41699.0,0.82064094]
[1646393146023,0.03534345,41706.0,41699.0,0.87064094]
[1646393146271,0.009604,41702.0,41700.0,0.05]
[1646393146775,0.09199265,41701.0,41700.0,0.05]
[1646393146972,0.09199265,41701.0,41700.0,0.21645922]
[1646393147374,0.09199265,41701.0,41700.0,0.5350552]
[1646393147975,0.09199265,41701.0,41700.0,0.05]
[1646393149678,0.09199265,41701.0,41699.0,0.27064094]
[1646393149883,0.0011,41703.0,41699.0,0.21184094]
[1646393150122,0.2,41700.0,41699.0,0.21184094]
[1646393150325,0.25,41700.0,41699.0,0.21184094]
[1646393151123,0.25,41700.0,41698.0,0.15606568]
[1646393151723,0.2,41697.0,41695.0,0.365858]
[1646393152124,0.25,41697.0,41695.0,0.365858]
[1646393152832,0.25,41697.0,41686.0,0.19736436]
[1646393152833,0.30289757,41688.0,41686.0,0.19736436]
[1646393153128,0.2,41686.0,41684.0,0.365858]
[1646393153425,0.25,41686.0,41684.0,0.365858]
[1646393153625,0.25,41686.0,41685.0,0.24640271]
[1646393153881,0.25,41686.0,41685.0,0.61226071]
[1646393154481,0.25,41686.0,41685.0,0.79733514]
[1646393154881,0.25,41686.0,41685.0,0.61226071]
[1646393156786,0.05,41686.0,41685.0,0.92975445]
[1646393157086,0.36290857,41688.0,41686.0,0.50835195]
[1646393157087,0.10289757,41688.0,41686.0,0.50835195]
[1646393157285,0.10289757,41688.0,41687.0,1.63569136]
[1646393157921,0.10289757,41688.0,41687.0,1.438327]
[1646393158320,0.15289757,41688.0,41687.0,1.438327]
[1646393159723,0.06572646,41698.0,41696.0,0.05786692]
[1646393159923,0.06572646,41698.0,41690.0,0.365858]
[1646393160629,0.06572646,41698.0,41691.0,0.31379496]
[1646393160825,0.06572646,41698.0,41696.0,0.2297839]
[1646393161027,0.06572646,41698.0,41695.0,0.21366913]
[1646393161976,0.06572646,41698.0,41691.0,0.31379496]
[1646393162176,0.06572646,41698.0,41694.0,0.23498978]
[1646393162378,0.06572646,41698.0,41689.0,0.365858]
[1646393162578,0.06572646,41698.0,41688.0,0.14]
[1646393162778,0.06572646,41698.0,41686.0,0.11853395]
[1646393162978,0.06572646,41698.0,41688.0,0.003]
[1646393163378,0.06572646,41698.0,41688.0,0.23591653]
[1646393164378,0.06572646,41698.0,41688.0,0.23291653]
[1646393166920,0.25,41696.0,41688.0,0.23291653]
[1646393168976,0.25,41697.0,41688.0,0.23291653]
[1646393169570,0.259607,41697.0,41688.0,0.23291653]
[1646393169770,0.25,41697.0,41688.0,0.23291653]
[1646393170671,0.25,41697.0,41686.0,0.11853395]
[1646393171472,0.060011,41696.0,41686.0,0.11853395]
[1646393171671,0.23914615,41694.0,41686.0,0.11853395]
[1646393171974,0.060011,41692.0,41686.0,0.11853395]
[1646393173019,0.060011,41692.0,41690.0,0.22449863]
[1646393173620,0.069617,41692.0,41687.0,0.05339386]
[1646393173820,0.060011,41692.0,41687.0,0.05339386]
[1646393174020,0.060011,41692.0,41691.0,0.19828011]
[1646393176367,0.06572646,41698.0,41691.0,0.51207507]
[1646393176368,0.059996,41697.0,41691.0,0.51207507]
[1646393177266,0.069602,41697.0,41691.0,0.51207507]
[1646393177669,0.059996,41697.0,41691.0,0.51207507]
[1646393178871,0.1729,41701.0,41691.0,0.51207507]
[1646393179471,0.1479,41701.0,41691.0,0.51207507]
[1646393179672,0.02400384,41697.0,41691.0,0.51207507]
[1646393179871,0.1479,41701.0,41691.0,0.51207507]
[1646393180321,0.059991,41702.0,41691.0,0.51207507]
[1646393180621,0.059991,41702.0,41691.0,0.51199353]
[1646393180821,0.059991,41702.0,41694.0,0.28815671]
[1646393181026,0.059991,41702.0,41694.0,0.31211671]
[1646393181225,0.010704,41703.0,41695.0,0.67965296]
[1646393181424,0.010704,41703.0,41695.0,0.31379496]
[1646393181623,0.0011,41703.0,41695.0,0.31379496]
[1646393182023,0.0011,41703.0,41700.0,0.20994503]
[1646393182224,0.09199265,41701.0,41700.0,0.20994503]
[1646393182626,0.0011,41703.0,41700.0,0.20994503]
[1646393183324,0.0011,41703.0,41701.0,0.26651106]
[1646393183526,0.0011,41703.0,41700.0,0.20994503]
[1646393183969,0.059991,41702.0,41697.0,0.003]
[1646393184368,0.059991,41702.0,41692.0,0.31379496]
[1646393184869,0.059991,41702.0,41690.0,0.0481]
[1646393185068,0.059991,41702.0,41691.0,0.007]
[1646393185469,0.059991,41702.0,41691.0,0.22684299]
[1646393185668,0.059991,41702.0,41691.0,0.007]
[1646393186370,0.059991,41702.0,41690.0,0.30452227]
[1646393186669,0.059991,41702.0,41696.0,0.28070389]
[1646393189624,0.059991,41702.0,41693.0,0.002]
[1646393190324,0.059991,41702.0,41690.0,0.45393633]
[1646393190726,0.059991,41702.0,41694.0,0.25257018]
[1646393194872,0.059991,41702.0,41697.0,0.21997916]
[1646393195113,0.0011,41703.0,41702.0,0.11998199]
[1646393200070,0.02509837,41703.0,41702.0,0.11998199]
[1646393203319,0.02509779,41703.0,41702.0,0.11998199]
[1646393204320,0.0011,41704.0,41702.0,0.11998199]
[1646393204526,0.01509479,41703.0,41702.0,0.11998199]
[1646393207775,0.01509479,41703.0,41702.0,0.01874718]
[1646393208173,1.42396,41702.0,41692.0,0.1501]
[1646393208376,0.29056401,41701.0,41692.0,0.1501]
[1646393209175,0.060001,41701.0,41692.0,0.1501]
[1646393209575,0.31090742,41700.0,41692.0,0.1501]
[1646393209777,0.31090742,41700.0,41689.0,0.41473476]
[1646393210019,0.31090742,41700.0,41689.0,0.24554281]
[1646393211019,0.31090742,41700.0,41690.0,0.19655569]
[1646393211318,0.31090742,41700.0,41689.0,0.24554281]
[1646393211920,0.31090742,41700.0,41687.0,0.19751406]
[1646393212119,0.31090742,41700.0,41688.0,0.19751406]
[1646393212322,0.36090742,41700.0,41688.0,0.19751406]
[1646393212919,0.36090742,41700.0,41691.0,0.22404674]
[1646393214170,0.36090742,41700.0,41687.0,0.3631855]
[1646393214571,0.36090742,41700.0,41692.0,2.282517]
[1646393215370,0.02400499,41696.0,41692.0,2.282517]
[1646393215571,0.02400499,41693.0,41692.0,2.282517]
[1646393215971,0.02400499,41693.0,41692.0,2.54660073]
[1646393217372,0.02400499,41693.0,41692.0,2.70477356]
[1646393219124,0.05,41694.0,41692.0,2.70477356]
[1646393219324,0.05,41694.0,41693.0,0.31090742]
[1646393219522,0.059989,41700.0,41693.0,0.31090742]
[1646393220228,0.059989,41700.0,41699.0,0.23980478]
[1646393220424,0.14308165,41700.0,41693.0,0.31090742]
[1646393220623,0.059989,41700.0,41692.0,2.63820389]
[1646393220824,0.059989,41700.0,41693.0,0.31090742]
[1646393221773,0.059989,41700.0,41696.0,0.24357922]
[1646393222070,0.13309265,41697.0,41696.0,0.24357922]
[1646393222671,0.05,41697.0,41696.0,0.24357922]
[1646393222874,0.07400499,41697.0,41696.0,0.24357922]
[1646393223073,0.02400499,41697.0,41696.0,0.24357922]
[1646393224277,0.02400499,41697.0,41692.0,2.44068983]
[1646393224477,0.109989,41700.0,41692.0,2.44068983]
[1646393224478,0.02400499,41693.0,41692.0,2.44068983]
[1646393225025,0.109989,41700.0,41699.0,0.06722197]
[1646393225226,0.10908766,41700.0,41699.0,0.06722197]
[1646393226728,0.35762317,41700.0,41699.0,0.06722197]
[1646393227128,0.10908766,41700.0,41699.0,0.06722197]
[1646393228767,0.07400442,41700.0,41699.0,0.06722197]
[1646393246875,0.05,41700.0,41699.0,0.06722197]
[1646393247074,0.059991,41701.0,41699.0,0.37681817]
[1646393250034,0.059991,41701.0,41699.0,0.06722197]
[1646393252671,0.02400067,41700.0,41699.0,0.06722197]
[1646393255024,0.0011,41704.0,41699.0,0.06722197]
[1646393255025,0.0011,41704.0,41702.0,0.27321257]
[1646393255227,0.01147232,41703.0,41702.0,0.27321257]
[1646393258877,0.111092,41704.0,41702.0,0.27321257]
[1646393259081,0.01147218,41703.0,41702.0,0.27321257]
[1646393259478,1.05,41702.0,41699.0,0.08612197]
[1646393259682,0.03508699,41700.0,41699.0,0.08612197]
[1646393263126,0.26264966,41700.0,41699.0,0.08612197]
[1646393263325,0.60775336,41700.0,41699.0,0.06459147]
[1646393263723,0.60775336,41700.0,41689.0,0.30718106]
[1646393263724,0.060009,41697.0,41689.0,0.30718106]
[1646393263924,0.060009,41697.0,41687.0,0.19751406]
[1646393264127,0.110009,41697.0,41687.0,0.19751406]
[1646393264324,0.110009,41697.0,41686.0,0.46574801]
[1646393264525,0.110009,41697.0,41687.0,0.19751406]
[1646393265124,0.110009,41697.0,41692.0,0.23262323]
[1646393265325,0.03050888,41693.0,41692.0,0.23262323]
[1646393265726,0.03050888,41693.0,41688.0,0.3034624]
[1646393265928,0.05,41695.0,41687.0,0.19751406]
[1646393266127,0.110009,41697.0,41687.0,0.19751406]
[1646393266600,0.110009,41697.0,41686.0,0.46574801]
[1646393266800,0.110009,41697.0,41686.0,0.68487362]
[1646393267198,0.01147563,41693.0,41686.0,0.48735956]
[1646393267396,0.01147563,41689.0,41686.0,0.48735956]
[1646393267596,0.01147563,41687.0,41686.0,0.48735956]
[1646393267797,0.01147563,41687.0,41686.0,0.33765956]
[1646393268196,0.01147563,41687.0,41686.0,0.11853395]
[1646393268396,0.01147563,41687.0,41686.0,0.3026173]
[1646393269400,0.01147563,41687.0,41686.0,0.40015312]
[1646393271025,0.01147563,41687.0,41686.0,1.06947352]
[1646393271428,0.01147563,41687.0,41686.0,1.23157211]
[1646393271628,0.01147563,41687.0,41686.0,1.42908617]
[1646393272029,0.01147563,41687.0,41686.0,1.06322817]
[1646393273127,0.059997,41693.0,41691.0,0.15760703]
[1646393275777,0.069604,41693.0,41691.0,0.15760703]
[1646393276075,0.059997,41693.0,41691.0,0.15760703]
[1646393278026,0.05,41695.0,41691.0,0.15760703]
[1646393279829,0.059607,41695.0,41691.0,0.15760703]
[1646393280025,0.05,41695.0,41691.0,0.15760703]
[1646393280226,0.180029,41697.0,41691.0,0.15760703]
[1646393281026,0.180029,41697.0,41692.0,0.06052126]
[1646393281277,0.180029,41697.0,41695.0,0.2209843]
[1646393281478,0.03508699,41696.0,41695.0,0.2209843]
[1646393281877,0.03508699,41696.0,41691.0,0.15760703]
[1646393282178,0.180029,41697.0,41691.0,0.15760703]
[1646393282379,0.05,41695.0,41691.0,0.15760703]
[1646393282978,0.05,41695.0,41693.0,0.26333857]
[1646393283178,0.04775221,41695.0,41693.0,0.26333857]
[1646393283378,0.04775221,41695.0,41691.0,0.15760703]
[1646393284579,0.04775221,41695.0,41691.0,0.42913168]
[1646393285230,0.19418755,41697.0,41696.0,0.09550441]
[1646393285430,0.22927454,41697.0,41691.0,0.42913168]
[1646393285631,0.19418755,41697.0,41691.0,0.42913168]
[1646393286730,0.19418755,41697.0,41692.0,0.35319002]
[1646393286933,0.059991,41698.0,41693.0,0.365858]
[1646393287133,0.059991,41698.0,41693.0,0.56337206]
[1646393287332,0.059991,41698.0,41694.0,0.19751406]
[1646393287536,0.059991,41698.0,41695.0,0.69048532]
[1646393287734,0.059991,41698.0,41695.0,0.32462732]
[1646393287933,0.059991,41698.0,41695.0,0.30718114]
[1646393288332,0.059991,41698.0,41695.0,0.02396]
[1646393288534,0.059991,41698.0,41694.0,0.02396]
[1646393289178,0.059991,41698.0,41695.0,0.365858]
[1646393289375,0.059991,41698.0,41693.0,0.29751406]
[1646393289575,0.059991,41698.0,41694.0,0.3]
[1646393290476,0.059991,41698.0,41694.0,0.32396]
[1646393291077,0.059991,41698.0,41695.0,0.75606]
[1646393291676,0.069595,41698.0,41695.0,0.7088137]
[1646393291877,0.069595,41698.0,41694.0,0.49751406]
[1646393292076,0.059991,41698.0,41695.0,0.75606]
[1646393292527,0.059991,41698.0,41694.0,0.3]
[1646393294228,0.059991,41698.0,41694.0,0.26371828]
[1646393295432,0.059991,41698.0,41693.0,0.1]
[1646393295629,0.069596,41698.0,41693.0,0.1]
[1646393295830,0.069596,41698.0,41691.0,0.93164574]
[1646393296030,0.059991,41698.0,41691.0,0.43413168]
[1646393296278,0.059991,41698.0,41692.0,0.365858]
[1646393296680,0.059991,41698.0,41691.0,0.15760703]
[1646393297881,0.059991,41698.0,41686.0,0.19751406]
[1646393298185,0.059991,41698.0,41685.0,0.39580545]
[1646393298186,0.083951,41698.0,41685.0,0.1491]
[1646393298884,0.083951,41698.0,41687.0,0.22888217]
[1646393299583,0.093559,41698.0,41687.0,0.22888217]
[1646393299784,0.083951,41698.0,41687.0,0.22888217]
[1646393300641,0.083951,41698.0,41685.0,0.2053111]
[1646393300846,0.083951,41698.0,41685.0,0.1431]
[1646393302042,0.32884026,41698.0,41688.0,0.24188857]
[1646393302241,0.083951,41698.0,41688.0,0.24188857]
[1646393302441,0.083951,41698.0,41685.0,0.1931]
[1646393303985,0.180021,41694.0,41686.0,0.2237575]
[1646393304185,0.06209466,41693.0,41686.0,0.2237575]
[1646393304585,0.060007,41692.0,41686.0,0.2237575]
[1646393304985,0.060007,41692.0,41683.0,0.49751406]
[1646393305386,0.060007,41692.0,41683.0,0.54751406]
[1646393306187,0.060007,41692.0,41685.0,0.20852635]
[1646393307188,0.069615,41692.0,41685.0,0.20852635]
[1646393307536,0.060007,41692.0,41685.0,0.20852635]
[1646393307735,0.060007,41692.0,41683.0,0.54751406]
[1646393309336,0.060007,41692.0,41683.0,0.49751406]
[1646393310638,0.060007,41692.0,41686.0,0.21386892]
[1646393311285,0.060007,41692.0,41687.0,0.365858]
[1646393311486,0.060007,41692.0,41687.0,0.665858]
[1646393311681,0.060007,41692.0,41687.0,0.365858]
[1646393312282,0.060007,41692.0,41690.0,0.21397286]
[1646393315134,0.179999,41698.0,41697.0,0.22767775]
[1646393315734,0.179999,41698.0,41697.0,0.16296669]
[1646393316334,0.179999,41698.0,41690.0,0.21397286]
[1646393317135,0.203959,41698.0,41687.0,0.3]
[1646393317336,0.203959,41698.0,41686.0,0.21886892]
[1646393318781,0.203959,41698.0,41686.0,0.15210081]
[1646393319185,0.179999,41698.0,41696.0,0.0999]
[1646393319382,0.203959,41698.0,41692.0,0.15673292]
[1646393319582,0.179999,41698.0,41694.0,0.25345882]
[1646393319782,0.179999,41698.0,41692.0,0.15673292]
[1646393322186,0.179999,41698.0,41692.0,0.11615276]
[1646393322633,0.179999,41698.0,41692.0,0.39574536]
[1646393322829,0.189606,41698.0,41692.0,0.39574536]
[1646393323328,0.179999,41698.0,41692.0,0.39574536]
[1646393324230,0.179999,41698.0,41692.0,0.2795926]
[1646393324432,0.179999,41698.0,41689.0,0.004]
[1646393325232,0.179999,41698.0,41690.0,0.19604814]
[1646393325432,0.179999,41698.0,41691.0,0.23932695]
[1646393325633,0.179999,41698.0,41690.0,0.19604814]
[1646393326706,0.189606,41698.0,41690.0,0.19604814]
[1646393327110,0.189606,41698.0,41694.0,0.24677812]
[1646393327306,0.189606,41698.0,41695.0,0.36531781]
[1646393327509,0.189606,41698.0,41696.0,0.365858]
[1646393328107,0.179999,41698.0,41696.0,0.365858]
[1646393328307,0.179999,41698.0,41696.0,0.57765817]
[1646393328506,0.179999,41698.0,41696.0,0.64815062]
[1646393328908,0.179999,41698.0,41696.0,0.62990794]
[1646393329108,0.179999,41698.0,41696.0,0.34761532]
[1646393329910,0.179999,41698.0,41697.0,0.16717634]
[1646393330339,0.25011078,41697.0,41695.0,0.003]
[1646393330636,0.179999,41698.0,41689.0,0.19751406]
[1646393330836,0.179999,41698.0,41690.0,0.05]
[1646393331036,0.179999,41698.0,41688.0,0.34751406]
[1646393331239,0.179999,41698.0,41687.0,0.19751406]
[1646393331438,0.179999,41698.0,41691.0,0.10491301]
[1646393331637,0.020433,41697.0,41685.0,0.1461]
[1646393331836,0.179999,41698.0,41685.0,0.1461]
[1646393332437,0.26200541,41694.0,41687.0,0.28186439]
[1646393332637,0.07064077,41693.0,41687.0,0.28186439]
[1646393333037,0.05,41692.0,41687.0,0.28186439]
[1646393333441,0.05,41692.0,41688.0,0.665831]
[1646393333640,0.04,41692.0,41688.0,0.665831]
[1646393333888,0.060003,41693.0,41688.0,0.665831]
[1646393334290,0.060003,41693.0,41688.0,0.85910647]
[1646393334487,0.060003,41693.0,41688.0,0.49327547]
[1646393334688,0.06961,41693.0,41688.0,0.49327547]
[1646393335189,0.07988444,41693.0,41687.0,0.28186439]
[1646393335389,0.12027744,41693.0,41687.0,0.28186439]
[1646393335589,0.110003,41693.0,41687.0,0.28186439]
[1646393335990,0.110003,41693.0,41689.0,0.21334571]
[1646393336188,0.110003,41693.0,41690.0,0.365831]
[1646393336388,0.110003,41693.0,41691.0,0.365831]
[1646393336988,0.110003,41693.0,41690.0,0.3]
[1646393337189,0.110003,41693.0,41691.0,0.54547312]
[1646393337387,0.110003,41693.0,41691.0,0.17964212]
[1646393337834,0.110003,41693.0,41692.0,0.365831]
[1646393338032,0.110003,41693.0,41692.0,0.665831]
[1646393338232,0.110003,41693.0,41692.0,0.715831]
[1646393338432,0.119609,41693.0,41692.0,0.35]
[1646393338633,0.069609,41693.0,41692.0,0.35]
[1646393338832,0.110003,41693.0,41692.0,0.35]
[1646393339234,0.110003,41693.0,41692.0,0.715831]
[1646393339235,0.05,41693.0,41692.0,0.715831]
[1646393339635,0.059984,41698.0,41692.0,0.715831]
[1646393339835,0.05,41697.0,41693.0,0.365831]
[1646393340035,0.059984,41698.0,41693.0,0.365831]
[1646393340636,0.059984,41698.0,41694.0,0.27597391]
[1646393340836,0.059984,41698.0,41694.0,0.32597391]
[1646393341281,0.059984,41698.0,41695.0,0.63372765]
[1646393341484,0.059984,41698.0,41695.0,0.31789665]
[1646393342083,0.059984,41698.0,41696.0,0.365831]
[1646393342282,0.059984,41698.0,41696.0,0.64505181]
[1646393342483,0.059984,41698.0,41696.0,0.27922081]
[1646393343083,0.059984,41698.0,41697.0,0.365831]
[1646393343386,0.059984,41698.0,41690.0,0.19751406]
[1646393343583,0.059984,41698.0,41690.0,0.053]
[1646393343783,0.059984,41698.0,41690.0,0.003]
[1646393344383,0.30870569,41698.0,41691.0,0.24001408]
[1646393344784,0.35870569,41698.0,41688.0,0.44751406]
[1646393345239,0.020433,41700.0,41698.0,0.16863796]
[1646393345442,0.6,41699.0,41688.0,0.25]
[1646393345640,0.6,41699.0,41687.0,0.19751406]
[1646393345641,0.009607,41698.0,41687.0,0.19751406]
[1646393345844,0.060002,41695.0,41690.0,0.26583557]
[1646393346041,0.060002,41695.0,41686.0,0.3283]
[1646393346241,0.060002,41695.0,41685.0,0.84930011]
[1646393346444,0.060002,41695.0,41686.0,0.19751406]
[1646393346641,0.060002,41695.0,41689.0,0.2011058]
[1646393347141,0.110002,41695.0,41689.0,0.2011058]
[1646393347342,0.110002,41695.0,41693.0,0.2851254]
[1646393347541,0.110002,41695.0,41689.0,0.2011058]
[1646393348348,0.110002,41695.0,41690.0,0.365831]
[1646393348545,0.05,41695.0,41690.0,0.665831]
[1646393348799,0.059985,41701.0,41691.0,0.365831]
[1646393348999,0.059985,41701.0,41690.0,0.3]
[1646393349198,0.059985,41701.0,41690.0,0.49751406]
[1646393349398,0.059985,41701.0,41696.0,0.46328282]
[1646393349598,0.059985,41701.0,41696.0,0.18265732]
[1646393350999,0.059985,41701.0,41700.0,0.26077106]
[1646393351400,0.059985,41701.0,41696.0,0.18265732]
[1646393352735,0.059985,41701.0,41697.0,0.22692645]
[1646393356885,0.0011,41704.0,41696.0,0.18265732]
[1646393358487,0.0011,41704.0,41697.0,0.27870861]
[1646393359889,0.020433,41703.0,41696.0,0.18265732]
[1646393360141,0.0011,41704.0,41692.0,0.005]
[1646393360142,0.020433,41702.0,41692.0,0.005]
[1646393360342,0.119992,41702.0,41693.0,0.05]
[1646393360542,0.020433,41701.0,41692.0,0.005]
[1646393360744,0.169992,41702.0,41690.0,0.1483]
[1646393360953,0.23699685,41701.0,41690.0,0.1483]
[1646393361141,0.40410805,41702.0,41691.0,0.21839548]
[1646393361940,0.059995,41699.0,41691.0,0.21839548]
[1646393362143,0.020433,41698.0,41695.0,0.10491301]
[1646393362341,0.020433,41698.0,41697.0,0.10491301]
[1646393366591,0.119601,41699.0,41697.0,0.10491301]
[1646393366790,0.119601,41699.0,41698.0,0.10491301]
[1646393366991,0.109995,41699.0,41698.0,0.10491301]
[1646393367838,0.05,41699.0,41698.0,0.10491301]
[1646393368638,0.40503357,41703.0,41698.0,0.10491301]
[1646393368836,0.40503357,41703.0,41693.0,0.17075834]
[1646393369235,0.40503357,41703.0,41693.0,0.17066665]
[1646393369436,0.31547857,41702.0,41693.0,0.17066665]
[1646393369638,0.29504557,41702.0,41693.0,0.17066665]
[1646393370238,0.40503357,41703.0,41693.0,0.17066665]
[1646393370440,0.29504557,41702.0,41693.0,0.17066665]
[1646393370639,0.40503357,41703.0,41693.0,0.17066665]
[1646393370840,0.109988,41703.0,41693.0,0.22066665]
[1646393371039,0.109988,41703.0,41697.0,0.02398657]
[1646393371294,0.020433,41702.0,41701.0,0.02398657]
[1646393371696,0.020433,41702.0,41701.0,0.24269137]